bitfinex/quotes_ETHUSD_20240618
["timestamp","ask_amount","ask_price","bid_price","bid_amount"]
[1718685704370,0.856,3455.1,3454.4,2.3315]
[1718685705702,0.856,3454.9,3454.4,2.3315]
[1718685706700,0.856,3455.1,3454.4,2.3315]
[1718685708273,0.856,3455.1,3454.5,0.8643924]
[1718685708477,0.856,3455.3,3454.5,3.7591524]
[1718685708678,2.1032519,3455.2,3454.5,3.7591524]
[1718685709212,0.50080191,3455.5,3454.8,2.89451]
[1718685709499,0.50080191,3455.5,3454.6,2.3248]
[1718685709500,2.95917497,3455.4,3454.6,2.3248]
[1718685709710,0.856,3455.2,3454.6,2.3248]
[1718685711710,7.93080191,3455.6,3454.6,2.3248]
[1718685711897,0.856,3455.3,3454.6,2.3248]
[1718685712205,0.856,3455.3,3454.7,0.521956]
[1718685712411,0.856,3455.5,3454.8,2.4083]
[1718685712613,2.10312589,3455.4,3454.8,2.4083]
[1718685713214,0.856,3455.3,3454.8,2.4083]
[1718685713513,2.10322272,3455.2,3454.8,2.4083]
[1718685718083,2.10322272,3455.2,3454.9,0.10301977]
[1718685720328,0.856,3455.1,3454.9,0.10301977]
[1718685720618,2.95922272,3455.0,3454.5,2.321]
[1718685720809,2.10322272,3454.9,3454.6,0.102883]
[1718685721422,0.856,3454.7,3454.6,0.102883]
[1718685721624,0.856,3454.7,3453.7,2.4958]
[1718685721824,0.856,3454.2,3453.8,0.10294125]
[1718685722029,2.10322272,3454.1,3453.7,2.4958]
[1718685722242,2.10322272,3454.1,3453.9,0.10293672]
[1718685722548,2.10322272,3454.1,3453.8,0.10294125]
[1718685722703,2.10322272,3454.1,3454.0,0.10293219]
[1718685723037,2.10322272,3454.1,3454.0,0.10312656]
[1718685723217,2.10322272,3454.1,3453.8,0.60976187]
[1718685723418,0.856,3454.4,3453.9,0.10313109]
[1718685723608,2.10376986,3454.3,3453.9,0.10313109]
[1718685724005,2.10376944,3454.2,3453.9,0.10313109]
[1718685724205,2.10376944,3454.1,3453.9,0.10313109]
[1718685724405,0.856,3454.4,3453.9,0.10313109]
[1718685724705,2.10376822,3454.3,3453.9,0.10313109]
[1718685728519,2.10376822,3454.3,3453.8,2.8953]
[1718685728713,0.856,3454.4,3454.0,0.10306796]
[1718685728912,0.856,3454.4,3453.9,0.53911]
[1718685728913,2.10375518,3454.3,3453.9,0.10307249]
[1718685729150,2.10375518,3454.3,3454.1,0.10315513]
[1718685729338,3.50078964,3454.7,3454.0,0.10315967]
[1718685729651,0.856,3454.5,3454.1,0.10315513]
[1718685729833,2.10374742,3454.4,3454.1,0.10315513]
[1718685730032,2.10374742,3454.4,3453.7,2.4958]
[1718685730245,2.10374742,3454.4,3454.2,0.1031506]
[1718685730575,2.10374742,3454.4,3453.7,2.4958]
[1718685730576,0.856,3454.3,3453.7,2.4958]
[1718685732352,0.856,3454.4,3453.7,2.4958]
[1718685733038,0.856,3454.4,3453.8,0.10318707]
[1718685733258,0.856,3454.4,3453.8,0.73823678]
[1718685734556,3.50078964,3454.7,3453.8,3.63356678]
[1718685734755,2.1037485,3454.6,3453.8,0.73823678]
[1718685734955,0.856,3454.5,3453.8,0.73823678]
[1718685735163,2.1037485,3454.4,3453.8,0.73823678]
[1718685735379,0.856,3454.5,3453.9,0.61295468]
[1718685735566,2.10374611,3454.4,3454.0,0.10282464]
[1718685738452,0.856,3454.5,3454.0,0.10282464]
[1718685738975,0.856,3454.5,3453.7,5.39122]
[1718685739281,0.856,3454.5,3453.8,0.10280436]
[1718685740378,3.5009091,3454.7,3453.8,1.0273678]
[1718685740577,0.856,3454.5,3453.8,1.0273678]
[1718685744558,0.856,3454.3,3453.8,0.10280436]
[1718685744754,0.856,3454.3,3453.7,2.4958]
[1718685745058,0.856,3454.3,3453.8,0.10282637]
[1718685745452,0.856,3454.3,3453.7,2.4958]
[1718685745657,0.856,3454.3,3453.9,0.10282183]
[1718685745890,0.856,3454.3,3453.8,0.10282637]
[1718685746187,0.856,3454.3,3453.7,2.4958]
[1718685746188,0.856,3454.3,3453.9,0.10282183]
[1718685746593,0.856,3454.3,3453.7,2.4958]
[1718685746763,0.856,3454.3,3453.7,3.034943]
[1718685746965,0.856,3454.3,3453.8,0.10287039]
[1718685747297,0.856,3454.3,3453.7,3.034943]
[1718685747501,0.856,3454.3,3453.9,0.10286586]
[1718685747674,0.856,3454.3,3453.8,0.10287039]
[1718685747876,0.856,3454.3,3454.0,0.10286133]
[1718685748192,0.856,3454.3,3453.9,0.10286586]
[1718685748397,0.856,3454.3,3454.1,0.10285679]
[1718685748566,0.856,3454.3,3454.2,0.10298432]
[1718685748897,0.856,3454.3,3453.7,2.4958]
[1718685749098,0.856,3454.3,3454.2,0.10298432]
[1718685749258,0.856,3454.3,3453.7,2.4958]
[1718685749457,0.856,3454.3,3454.2,0.10298432]
[1718685749674,0.856,3454.3,3453.7,2.4958]
[1718685749875,0.856,3454.3,3454.2,0.10298799]
[1718685750075,0.856,3454.3,3453.7,2.4958]
[1718685750298,0.856,3454.3,3454.2,0.10298799]
[1718685750896,0.856,3454.3,3453.7,2.4958]
[1718685751087,0.856,3454.3,3454.2,0.10298799]
[1718685751271,0.856,3454.3,3453.7,2.4958]
[1718685751474,0.856,3454.5,3454.2,0.10298799]
[1718685751802,2.10374755,3454.4,3454.3,0.10295043]
[1718685752166,2.10374755,3454.4,3453.7,3.410103]
[1718685752604,2.10374755,3454.4,3453.8,0.10297309]
[1718685753901,3.5009091,3454.7,3453.9,2.2846]
[1718685754063,2.10374809,3454.6,3453.9,2.34250362]
[1718685754263,2.10374809,3454.6,3454.1,2.2846]
[1718685754806,2.10374809,3454.6,3454.2,0.10294029]
[1718685756002,0.5009091,3455.0,3454.3,2.33539481]
[1718685756209,7.43,3455.6,3454.4,0.32943351]
[1718685756210,2.10354181,3454.9,3454.4,0.32943351]
[1718685756367,0.856,3455.3,3454.5,0.05788954]
[1718685756565,2.10326352,3455.2,3454.5,0.05788954]
[1718685756770,0.856,3455.1,3454.6,0.10285613]
[1718685757909,3.5009091,3455.5,3454.6,0.10285613]
[1718685758074,3.5009091,3455.5,3454.7,2.3613]
[1718685758075,0.856,3455.3,3454.7,2.3613]
[1718685758407,2.10327796,3455.2,3454.7,2.3613]
[1718685758706,2.10327796,3455.2,3454.8,0.10284707]
[1718685759220,2.10327796,3455.2,3454.7,2.3613]
[1718685759426,2.10327796,3455.2,3454.9,0.10284255]
[1718685759592,2.10327796,3455.2,3454.8,0.10284707]
[1718685759919,2.10327796,3455.2,3454.7,2.3613]
[1718685760106,2.10327796,3455.2,3454.9,0.10284255]
[1718685760314,2.10327796,3455.2,3454.8,0.10284707]
[1718685760524,2.10327796,3455.2,3455.0,0.10283802]
[1718685760701,2.10327796,3455.2,3454.9,0.10240973]
[1718685761018,2.10327796,3455.2,3455.1,0.10240067]
[1718685761411,2.10327796,3455.2,3454.7,2.3613]
[1718685761798,0.856,3455.3,3454.8,0.10241426]
[1718685761999,2.1032052,3455.2,3454.8,0.34878569]
[1718685762247,2.1032052,3455.2,3454.8,0.24637143]
[1718685762539,2.1032052,3455.2,3454.9,0.10240973]
[1718685763190,2.1032052,3455.2,3454.7,2.3613]
[1718685763720,0.856,3455.3,3454.8,0.10241426]
[1718685763901,2.10320725,3455.2,3454.8,0.10241426]
[1718685764100,2.10320725,3455.2,3454.7,2.3613]
[1718685764296,2.10320725,3455.2,3454.9,0.10243907]
[1718685764297,0.856,3455.1,3454.9,0.10243907]
[1718685764541,2.95920725,3455.0,3454.8,0.1024436]
[1718685764845,2.10320725,3454.9,3454.3,2.4738]
[1718685765279,2.10320725,3454.9,3454.4,0.10249472]
[1718685765730,2.10320725,3454.9,3454.5,0.10249019]
[1718685765935,2.10320725,3454.9,3454.3,2.4738]
[1718685766146,2.10320725,3454.9,3454.6,0.10248566]
[1718685766418,2.10320725,3454.9,3454.4,0.33298]
[1718685766624,2.10320725,3454.9,3454.7,0.10248113]
[1718685766825,2.10320725,3454.9,3454.4,0.33298]
[1718685767215,2.10320725,3454.9,3454.5,0.10249019]
[1718685767400,2.10342651,3454.8,3454.5,0.39341721]
[1718685767597,3.50082646,3455.5,3454.5,0.29092702]
[1718685767808,0.856,3455.3,3454.6,0.10248566]
[1718685768015,2.1034123,3455.2,3454.6,0.10248566]
[1718685768496,0.856,3455.1,3454.6,0.10248566]
[1718685768795,2.1034123,3455.0,3454.3,2.4738]
[1718685769044,2.1034123,3455.0,3454.4,0.622488]
[1718685769207,2.1034123,3455.0,3454.4,0.10248739]
[1718685772055,2.1034123,3455.0,3454.4,0.16037736]
[1718685772255,2.1034123,3454.9,3454.4,0.16037736]
[1718685772454,2.1034123,3454.8,3454.4,0.16037736]
[1718685772672,0.856,3455.3,3454.4,0.16037736]
[1718685772833,2.10341559,3455.2,3454.4,1.0884051]
[1718685775048,2.10341559,3455.2,3454.5,2.4494]
[1718685775262,2.10341559,3455.2,3454.6,0.10257003]
[1718685778971,0.856,3455.1,3454.6,0.10257003]
[1718685779142,2.10341559,3455.0,3454.6,0.10257003]
[1718685784678,2.39935715,3455.0,3454.6,0.10257003]
[1718685784975,2.39935715,3455.0,3453.4,5.89567]
[1718685784976,0.856,3454.7,3453.6,2.3572]
[1718685785177,0.29594156,3455.0,3453.6,2.3572]
[1718685785178,0.856,3454.5,3453.6,2.3572]
[1718685785345,2.1036341,3454.4,3453.7,0.09918282]
[1718685788661,2.1036341,3454.4,3453.7,2.99462282]
[1718685790454,2.1036341,3454.4,3453.7,3.85062282]
[1718685791188,0.856,3454.7,3453.7,3.85062282]
[1718685791386,2.1036304,3454.6,3453.7,3.85062282]
[1718685791586,2.1036304,3454.6,3453.8,1.00038738]
[1718685791786,2.1036304,3454.6,3453.8,1.09956567]
[1718685800174,2.1036304,3454.6,3453.8,3.99490567]
[1718685806093,2.1036304,3454.6,3453.9,2.4336]
[1718685806307,2.1036304,3454.6,3454.0,0.09940397]
[1718685812616,2.1036304,3454.6,3454.0,1.17531372]
[1718685812819,2.1036304,3454.5,3454.4,6.01887]
[1718685813027,2.10347258,3455.1,3454.6,2.2681]
[1718685813323,2.10345592,3455.0,3454.7,0.09938325]
[1718685813508,2.10345592,3454.9,3454.7,0.09938325]
[1718685813715,7.93087485,3455.2,3454.6,2.2681]
[1718685813716,2.10345592,3454.8,3454.6,2.2681]
[1718685814022,2.10345592,3454.7,3454.6,2.2681]
[1718685814319,2.10345592,3455.1,3454.6,2.36748778]
[1718685814525,2.10345592,3455.0,3454.6,2.36748778]
[1718685816011,2.10345592,3454.9,3454.6,2.36748778]
[1718685816211,2.10345592,3454.8,3454.6,2.36748778]
[1718685816519,8.286,3455.2,3454.7,0.09926954]
[1718685816692,2.10320053,3455.1,3454.7,0.09926954]
[1718685819339,0.856,3455.0,3454.7,0.09926954]
[1718685819537,2.10320053,3454.9,3454.7,0.09926954]
[1718685822534,2.39912058,3454.9,3454.7,0.09926954]
[1718685822731,2.10320053,3454.8,3454.2,2.89502]
[1718685823198,2.10320053,3454.7,3454.2,2.89502]
[1718685823397,0.856,3455.0,3454.2,2.89502]
[1718685823616,2.1034018,3454.9,3454.2,2.89502]
[1718685825108,0.50078638,3455.4,3454.6,2.89467]
[1718685825109,2.1034018,3454.8,3454.6,2.89467]
[1718685825342,2.1034018,3454.7,3454.6,5.24357]
[1718685825820,2.1034018,3455.1,3454.6,5.24357]
[1718685826008,2.1034018,3455.0,3454.6,5.24357]
[1718685826209,2.1034018,3454.9,3454.6,5.24357]
[1718685826513,2.1034018,3454.8,3454.7,2.8946]
[1718685826713,2.8942,3455.2,3454.7,2.8946]
[1718685826918,2.1032728,3455.1,3454.7,2.8946]
[1718685827726,5.10385,3455.6,3455.2,2.89418]
[1718685828042,3.39645146,3456.0,3455.4,5.23462]
[1718685828259,2.89575,3456.0,3455.4,5.23462]
[1718685828602,0.00224,3456.0,3455.6,2.89384]
[1718685828802,0.00224,3456.0,3455.7,0.05786907]
[1718685829005,0.00224,3456.0,3455.7,0.15680624]
[1718685829202,0.00224,3456.0,3455.8,2.89365]
[1718685829634,0.00224,3456.0,3455.9,0.09892811]
[1718685830413,0.666749,3456.0,3455.6,2.89384]
[1718685830632,2.89576,3456.0,3455.9,0.09858348]
[1718685830939,2.89368,3455.8,3455.4,5.23462]
[1718685832624,2.89576,3456.0,3455.5,2.89393]
[1718685832820,0.00224,3456.0,3455.6,0.05787564]
[1718685833237,0.00224,3456.0,3455.5,3.706755]
[1718685833548,0.00224,3456.0,3455.7,2.89374]
[1718685834937,0.00224,3456.0,3455.8,2.89368]
[1718685835337,0.00224,3456.0,3455.9,2.3215]
[1718685837953,0.00224,3456.0,3455.9,2.41976451]
[1718685839321,0.00224,3456.0,3455.9,0.09826451]
[1718685844037,0.00224,3456.0,3455.7,2.89376]
[1718685844237,0.00224,3456.0,3455.9,0.09823884]
[1718685844449,0.00224,3456.0,3455.8,0.09824337]
[1718685844749,0.00224,3456.0,3455.9,0.09823884]
[1718685845139,0.00224,3456.0,3455.7,2.89376]
[1718685845331,2.8936,3455.9,3455.8,0.09824337]
[1718685845535,2.8936,3455.9,3454.4,2.89484]
[1718685845536,2.89427,3455.1,3454.6,12.76118]
[1718685845844,0.856,3455.1,3454.6,5.33118]
[1718685846044,2.4989,3455.9,3454.7,3.427708]
[1718685846045,2.89419,3455.2,3454.7,3.427708]
[1718685846371,2.89419,3455.2,3454.6,2.4365]
[1718685846372,2.89429,3455.1,3454.6,2.4365]
[1718685846543,3.75027,3455.1,3454.4,2.89479]
[1718685847101,3.75027,3455.1,3454.5,2.89477]
[1718685847278,3.75027,3455.1,3454.6,0.822606]
[1718685847466,2.89435,3455.0,3454.6,0.822606]
[1718685848561,2.8941,3455.3,3454.8,2.89452]
[1718685849263,2.89419,3455.2,3454.8,2.89452]
[1718685849464,2.89419,3455.2,3454.6,3.717216]
[1718685849858,3.75019,3455.2,3454.7,2.8946]
[1718685851879,3.75019,3455.2,3454.7,3.4093404]
[1718685852200,2.89419,3455.2,3454.8,0.05788447]
[1718685852391,2.89419,3455.2,3454.7,3.4093404]
[1718685852995,2.89419,3455.2,3454.8,0.09203058]
[1718685853487,2.89419,3455.2,3454.7,3.4093404]
[1718685853689,2.89419,3455.2,3454.9,0.09202605]
[1718685853885,2.89428,3455.1,3454.8,0.09203058]
[1718685854093,2.89428,3455.1,3455.0,0.09202152]
[1718685854468,2.89428,3455.1,3454.7,2.8946]
[1718685854689,2.89428,3455.1,3455.0,0.09227449]
[1718685854870,2.89428,3455.1,3454.7,2.8946]
[1718685855071,2.89428,3455.1,3455.0,0.09227449]
[1718685855270,2.89428,3455.1,3454.7,2.8946]
[1718685855492,2.89428,3455.1,3455.0,0.09227449]
[1718685855678,10.203279,3455.1,3455.0,0.09227449]
[1718685856022,2.89456,3454.8,3454.3,5.33143]
[1718685859989,2.89456,3454.8,3454.4,2.89485]
[1718685862489,5.19578,3454.5,3453.9,2.89527]
[1718685862799,5.19578,3454.5,3453.8,2.89535]
[1718685862800,2.89494,3454.3,3453.8,2.89535]
[1718685865222,2.89511,3454.1,3453.6,2.89546]
[1718685866498,2.89511,3454.1,3453.7,2.89544]
[1718685867919,2.89511,3454.1,3453.8,0.09287536]
[1718685868323,2.89511,3454.1,3453.7,2.89544]
[1718685868756,2.89511,3454.1,3453.8,0.09287536]
[1718685869225,2.89511,3454.1,3453.9,0.09287082]
[1718685869603,2.89511,3454.1,3453.7,2.89544]
[1718685869809,2.89511,3454.1,3454.0,0.09286629]
[1718685870009,2.89511,3454.1,3453.7,2.89544]
[1718685870215,2.89511,3454.1,3454.0,0.09286629]
[1718685870420,2.89511,3454.1,3453.7,2.89544]
[1718685870622,2.89511,3454.1,3454.0,0.09286629]
[1718685870796,2.89511,3454.1,3453.7,2.89544]
[1718685871006,2.89511,3454.1,3454.0,0.09286629]
[1718685871201,2.89511,3454.1,3453.7,2.89544]
[1718685871855,2.89511,3454.1,3453.8,0.09287536]
[1718685872016,2.89511,3454.1,3453.7,2.89544]
[1718685872350,2.89511,3454.1,3453.8,0.09287536]
[1718685872527,2.89511,3454.1,3453.7,2.89544]
[1718685872715,2.89511,3454.1,3453.8,0.09287536]
[1718685872916,2.89511,3454.1,3453.7,2.89544]
[1718685873139,2.89511,3454.1,3453.8,0.09287536]
[1718685873344,2.89511,3454.1,3453.7,2.89544]
[1718685873525,2.89511,3454.1,3453.8,0.09287536]
[1718685873865,2.89511,3454.1,3453.7,2.89544]
[1718685874020,6.05178,3454.5,3453.9,0.09287082]
[1718685874218,2.89456,3454.8,3453.9,2.89525]
[1718685874517,0.856,3454.7,3454.0,0.09286629]
[1718685879179,0.856,3454.5,3454.0,0.09286629]
[1718685881044,2.3955,3454.9,3454.0,0.09286629]
[1718685881248,2.71086877,3455.0,3454.1,2.3227]
[1718685881455,0.856,3454.9,3454.1,2.3227]
[1718685881659,0.856,3454.9,3454.2,0.09289023]
[1718685883558,2.21,3455.0,3454.2,0.09289023]
[1718685883935,3.066,3455.0,3454.2,0.09289023]
[1718685884138,2.21,3455.0,3454.2,0.09289023]
[1718685884343,0.856,3454.9,3454.2,0.99907425]
[1718685884548,0.856,3454.9,3454.3,2.89493]
[1718685884747,0.856,3454.9,3454.4,0.09281513]
[1718685884943,2.21,3455.0,3454.3,2.89493]
[1718685885177,2.21,3455.0,3454.4,0.09281513]
[1718685885480,3.066,3455.0,3454.4,0.09281513]
[1718685885785,2.21,3455.0,3454.4,0.09281513]
[1718685885943,0.856,3454.9,3454.4,0.09281513]
[1718685886147,0.856,3454.9,3454.3,2.89493]
[1718685886450,0.856,3454.9,3454.4,0.9946295]
[1718685888388,0.856,3454.9,3454.4,0.0927381]
[1718685888881,0.856,3454.9,3454.2,2.89502]
[1718685889096,0.856,3454.9,3454.5,0.09273357]
[1718685889254,0.856,3454.9,3454.2,2.89502]
[1718685889878,0.856,3454.9,3454.3,0.09273163]
[1718685890485,0.856,3454.5,3454.3,0.09273163]
[1718685890663,0.856,3454.5,3453.8,5.15866]
[1718685890851,0.856,3454.5,3454.4,0.09262806]
[1718685891047,0.856,3454.5,3453.8,5.15866]
[1718685891276,3.2435,3454.7,3454.4,0.09263173]
[1718685891479,3.2435,3454.7,3453.8,5.15866]
[1718685891480,3.81951,3454.7,3453.8,5.15866]
[1718685891688,3.2435,3454.7,3454.5,0.0926272]
[1718685891888,3.2435,3454.7,3453.8,5.15866]
[1718685892088,3.2435,3454.7,3454.6,0.09262267]
[1718685892287,5.34702536,3454.7,3453.8,5.15866]
[1718685892459,3.2435,3454.7,3453.8,5.15866]
[1718685892788,3.2435,3454.7,3453.9,1.05013979]
[1718685893657,3.2435,3454.7,3453.9,3.94540979]
[1718685894758,2.3875,3454.7,3453.9,3.94540979]
[1718685894957,0.856,3454.8,3454.0,2.89519]
[1718685895271,0.856,3454.8,3454.1,0.09272236]
[1718685896931,0.856,3454.9,3454.2,2.4292]
[1718685897069,2.10341924,3454.8,3454.2,5.32421]
[1718685897260,2.10341924,3454.8,3454.3,0.09268028]
[1718685897596,2.10341924,3454.8,3454.2,5.32421]
[1718685897901,2.10341924,3454.8,3454.4,0.09267208]
[1718685898066,0.856,3454.9,3454.3,0.09267661]
[1718685898393,2.10338737,3454.8,3454.4,0.09267208]
[1718685898566,2.10338737,3454.8,3454.4,1.02625475]
[1718685898768,2.21,3455.0,3454.4,1.02625475]
[1718685898972,2.95932545,3454.9,3454.4,3.92110475]
[1718685899276,2.10336582,3454.8,3454.4,3.92110475]
[1718685899483,0.856,3454.9,3454.4,3.92110475]
[1718685900865,3.066,3455.0,3454.4,3.92110475]
[1718685901065,2.10329814,3454.9,3454.5,0.92453148]
[1718685901285,2.10329814,3454.9,3454.5,0.09263821]
[1718685901490,2.10329814,3454.9,3454.6,2.3599]
[1718685901860,2.10329814,3454.9,3454.7,0.09262915]
[1718685906191,0.856,3455.4,3454.9,2.89438]
[1718685906742,0.856,3455.4,3455.0,0.09255319]
[1718685907102,0.856,3455.4,3454.9,2.89438]
[1718685907303,0.856,3455.4,3454.9,3.419808]
[1718685907691,0.856,3455.4,3455.0,0.09255319]
[1718685908591,7.43,3455.6,3455.1,5.36627]
[1718685908791,0.856,3455.7,3455.1,5.45881866]
[1718685909203,0.856,3455.5,3455.1,5.45881866]
[1718685911297,0.856,3455.5,3455.1,6.34668133]
[1718685911534,0.00224,3456.0,3455.2,2.89416]
[1718685911720,0.856,3455.7,3455.2,2.89416]
[1718685911960,0.856,3455.7,3455.3,0.09235623]
[1718685912327,0.856,3455.7,3455.2,2.89416]
[1718685912533,0.856,3455.7,3455.4,0.0923517]
[1718685912814,0.856,3455.7,3455.2,2.89416]
[1718685912996,0.856,3455.7,3455.5,0.09234717]
[1718685913204,0.856,3455.7,3455.2,2.89416]
[1718685913514,0.856,3455.7,3455.6,0.09234265]
[1718685913710,0.856,3455.7,3455.1,2.472]
[1718685913930,0.856,3455.5,3455.1,5.36626]
[1718685914603,0.00224,3456.0,3455.1,5.36626]
[1718685914804,0.856,3455.3,3455.1,2.472]
[1718685915036,0.856,3455.3,3454.9,2.89438]
[1718685915240,0.55722905,3455.9,3454.9,2.89438]
[1718685915241,0.856,3455.4,3454.9,2.89438]
[1718685918308,0.856,3455.4,3454.7,2.89459]
[1718685918309,0.856,3455.0,3454.1,2.3136]
[1718685918574,2.4593,3455.2,3453.8,5.20895]
[1718685918575,0.856,3454.3,3453.8,5.20895]
[1718685918746,7.98,3455.1,3453.9,0.05789954]
[1718685918925,0.856,3454.6,3453.9,0.05789954]
[1718685919733,2.4593,3455.2,3454.2,2.89501]
[1718685919960,0.856,3454.8,3454.2,2.89501]
[1718685920747,0.856,3454.6,3454.2,2.89501]
[1718685920955,0.856,3454.6,3453.9,2.89527]
[1718685921173,0.856,3454.4,3453.8,2.3136]
[1718685921341,0.856,3454.2,3453.8,2.3136]
[1718685921535,0.856,3454.4,3453.7,2.8954]
[1718685923652,0.856,3454.4,3453.8,2.89535]
[1718685925272,0.856,3454.2,3453.2,0.45363562]
[1718685925472,0.856,3453.5,3453.2,0.45363562]
[1718685925781,0.856,3453.3,3452.9,2.8961]
[1718685925954,0.856,3453.1,3452.7,2.89624]
[1718685926155,0.856,3453.1,3452.6,2.4109]
[1718685926378,0.856,3453.1,3452.5,2.89641]
[1718685926543,0.856,3452.9,3452.5,2.89641]
[1718685926875,0.856,3452.9,3452.3,0.453871]
[1718685927102,7.43,3453.8,3453.3,2.89577]
[1718685927240,0.856,3454.0,3453.2,2.4982]
[1718685927562,0.856,3453.8,3453.2,5.39405]
[1718685927768,0.856,3453.8,3453.3,2.89576]
[1718685928151,0.856,3453.8,3453.4,0.08372998]
[1718685930075,7.43,3454.5,3453.4,2.97939998]
[1718685930378,0.856,3453.8,3453.4,2.97939998]
[1718685930551,1.06376256,3454.2,3453.4,2.97939998]
[1718685930756,0.856,3453.9,3453.4,2.97939998]
[1718685931393,2.4838,3454.6,3453.6,2.89552]
[1718685931547,0.856,3454.2,3453.6,2.89552]
[1718685931748,0.856,3454.2,3453.7,0.10810608]
[1718685932482,0.856,3454.2,3453.7,3.06137886]
[1718685933654,2.21,3454.9,3454.2,2.89501]
[1718685933848,2.21,3454.9,3454.3,2.89493]
[1718685933849,0.856,3454.7,3454.3,2.89493]
[1718685934175,3.066,3454.9,3454.3,3.00300466]
[1718685935595,2.21,3454.9,3454.5,2.89475]
[1718685935830,3.1181637,3455.3,3454.8,2.8945]
[1718685935953,0.00224,3456.0,3454.9,2.89442]
[1718685936296,0.856,3455.4,3454.9,3.00225411]
[1718685937796,0.856,3455.4,3454.9,0.10783411]
[1718685938099,0.856,3455.4,3454.6,5.28287]
[1718685938253,0.856,3455.2,3455.0,0.10782887]
[1718685938460,0.856,3455.2,3454.2,5.21457]
[1718685938655,0.856,3454.8,3454.2,5.736027]
[1718685938990,0.856,3454.8,3454.2,5.21457]
[1718685939500,0.856,3454.8,3453.9,2.89525]
[1718685939673,0.856,3454.6,3453.9,2.89525]
[1718685939855,0.856,3454.8,3453.9,2.89525]
[1718685940868,0.856,3454.6,3453.9,2.89525]
[1718685941297,0.856,3454.6,3454.1,2.8951]
[1718685941492,5.054,3455.3,3454.1,2.8951]
[1718685941688,0.54937,3455.2,3454.1,2.8951]
[1718685941895,0.54937,3455.2,3454.2,2.89501]
[1718685942689,0.54937,3455.2,3454.3,2.89492]
[1718685942887,2.81414527,3455.8,3454.7,2.89459]
[1718685943107,2.3134,3455.8,3454.7,2.89459]
[1718685943322,5.3134,3455.8,3454.7,2.89459]
[1718685943615,2.3134,3455.8,3454.8,0.10783934]
[1718685943780,2.21,3456.4,3455.4,2.89398]
[1718685943781,0.231564,3455.7,3455.4,2.89398]
[1718685944111,2.71075407,3456.4,3455.5,0.1078027]
[1718685944411,2.71075407,3456.4,3455.2,2.89415]
[1718685944583,2.71075407,3456.4,3455.6,0.10779747]
[1718685944789,2.71075407,3456.4,3455.2,2.89415]
[1718685944987,2.4892,3455.9,3455.7,0.10779224]
[1718685945184,2.4892,3455.9,3454.9,2.89443]
[1718685945602,2.4892,3455.9,3455.0,0.10782887]
[1718685945903,0.55,3455.8,3454.6,2.89461]
[1718685946107,0.55,3455.8,3455.1,0.10782364]
[1718685946309,0.33601616,3455.7,3454.6,2.89461]
[1718685946471,0.33601616,3455.7,3455.2,0.1078184]
[1718685946678,0.33601616,3455.7,3454.6,2.89461]
[1718685946874,0.33601616,3455.7,3455.3,0.10781317]
[1718685947117,0.33601616,3455.7,3453.9,2.89525]
[1718685947409,2.3444,3455.2,3453.8,2.8953]
[1718685947608,5.3444,3455.2,3453.6,2.89551]
[1718685947908,0.55,3455.1,3453.5,2.89557]
[1718685948122,2.054,3454.9,3453.5,2.89557]
[1718685948411,0.55,3454.8,3453.6,2.89552]
[1718685948577,2.054,3454.9,3453.6,2.89545]
[1718685948882,2.054,3454.9,3453.9,2.89525]
[1718685949088,2.84514615,3455.2,3454.0,2.89518]
[1718685949089,0.637484,3454.8,3454.0,2.89518]
[1718685949299,2.3444,3455.2,3454.0,2.89518]
[1718685949525,0.55,3455.1,3453.4,5.35835]
[1718685949680,3.55,3455.1,3453.5,0.05790034]
[1718685950698,3.55,3455.1,3453.9,2.89527]
[1718685950887,3.55,3455.1,3454.0,2.89519]
[1718685951091,1.01584,3455.0,3454.0,2.89519]
[1718685952807,1.01584,3455.0,3454.2,2.89498]
[1718685953588,1.01584,3455.0,3454.0,2.89519]
[1718685955999,1.01584,3455.0,3454.1,2.95299571]
[1718685957482,1.01584,3455.0,3454.1,2.8951]
[1718685957794,0.336024,3454.9,3454.1,2.8951]
[1718685957983,0.336024,3454.9,3453.9,2.89524]
[1718685958186,0.336024,3454.9,3454.2,0.10799914]
[1718685958408,0.336024,3454.9,3454.0,2.89518]
[1718685958603,0.336024,3454.9,3454.3,0.1079939]
[1718685958885,0.336024,3454.9,3454.4,0.10823073]
[1718685959422,0.336024,3454.9,3453.8,2.89528]
[1718685959826,0.336024,3454.9,3453.5,2.89554]
[1718685959827,2.3901,3454.8,3453.9,0.10825692]
[1718685960001,2.9401,3454.8,3453.9,0.10825692]
[1718685960321,2.9401,3454.8,3454.0,0.10825168]
[1718685960726,2.9401,3454.8,3453.4,5.35838]
[1718685960910,2.9401,3454.8,3454.1,0.10824645]
[1718685961226,0.49941,3454.7,3453.4,5.35838]
[1718685961434,0.49941,3454.7,3454.2,0.10824121]
[1718685961617,0.49941,3454.7,3453.4,5.35838]
[1718685961932,0.49941,3454.7,3453.5,3.00387788]
[1718685963612,2.3901,3454.5,3453.5,0.10827788]
[1718685963820,2.4317,3454.3,3453.5,0.10827788]
[1718685964136,2.4317,3454.3,3452.8,2.89619]
[1718685964368,2.4317,3454.1,3452.8,2.89619]
[1718685964502,0.55,3454.0,3452.9,0.10830932]
[1718685964835,0.84817,3454.0,3452.9,0.10830932]
[1718685965434,2.4636,3453.9,3452.9,0.10830932]
[1718685965641,0.55,3453.8,3452.9,0.10830932]
[1718685965833,2.89598,3453.1,3452.7,2.89628]
[1718685966503,2.89598,3453.1,3452.8,0.10831456]
[1718685966699,2.89603,3453.0,3452.8,0.10831456]
[1718685966929,2.89603,3453.0,3452.4,2.89645]
[1718685967144,2.89603,3453.0,3452.9,0.10830932]
[1718685967358,2.89603,3453.0,3452.4,2.89645]